bitfinex/quotes_SOLUSD_20251013
["timestamp","ask_amount","ask_price","bid_price","bid_amount"]
[1760384198804,6.1922818,208.23,208.18,13.4435354]
[1760384198997,1e-08,208.19,208.18,12.17617074]
[1760384199202,1e-08,208.19,208.18,20.81617074]
[1760384199408,1e-08,208.19,208.18,20.3358172]
[1760384200087,1e-08,208.19,208.18,14.1435354]
[1760384200313,1e-08,208.19,208.18,4.8035354]
[1760384200694,1e-08,208.19,208.18,14.1435354]
[1760384200902,1e-08,208.19,208.18,4.8035354]
[1760384201203,6.89228181,208.19,208.14,4.80445853]
[1760384201401,6.1922818,208.15,208.12,4.80485584]
[1760384201594,27.6922818,208.15,208.13,8.64]
[1760384201791,6.8922818,208.14,208.12,4.80485584]
[1760384202033,6.8922818,208.14,208.13,8.64]
[1760384202402,10.87647521,208.13,208.08,4.8058439]
[1760384202594,6.1922818,208.1,208.09,8.64]
[1760384202916,6.1922818,208.1,208.08,4.8058439]
[1760384203090,26.9922818,208.14,208.1,4.80538202]
[1760384203296,20.8,208.12,208.11,8.64]
[1760384203511,1e-08,208.19,208.11,15.5522818]
[1760384203812,20.8,208.18,208.12,6.1922818]
[1760384203997,26.9922818,208.18,208.13,8.64]
[1760384204199,27.6822818,208.18,208.14,8.64]
[1760384204539,20.8,208.16,208.11,0.72]
[1760384204710,20.8,208.16,208.12,8.64]
[1760384204907,6.1922818,208.14,208.13,8.64]
[1760384205109,10.87647521,208.13,208.07,12.01469324]
[1760384205308,0.69,208.12,208.08,8.64]
[1760384206106,17.06875701,208.13,208.09,8.64]
[1760384206310,0.69,208.12,208.09,8.64]
[1760384206544,6.1922818,208.1,208.09,8.64]
[1760384206906,17.75875701,208.1,208.09,8.64]
[1760384207308,43.36413903,208.1,208.03,4.80696507]
[1760384207528,6.1922818,208.06,208.04,8.64]
[1760384208030,6.1922818,208.07,208.05,8.64]
[1760384208235,6.1922818,208.07,208.03,4.80696507]
[1760384208441,20.8,208.1,208.04,9.36]
[1760384208737,20.8,208.1,208.06,6.1922818]
[1760384208922,17.06875701,208.13,208.07,14.8322818]
[1760384209224,20.8,208.1,208.08,8.64]
[1760384209726,21.49,208.1,208.07,4.80607487]
[1760384209925,20.8,208.1,208.08,8.64]
[1760384210118,20.8,208.1,208.09,8.64]
[1760384210516,27.7122818,208.1,208.09,8.64]
[1760384210922,20.8,208.1,208.07,4.80607487]
[1760384211124,20.8,208.1,208.08,8.64]
[1760384211430,17.06875701,208.12,208.09,4.80561295]
[1760384211629,17.78875701,208.12,208.1,8.64]
[1760384212725,0.72,208.15,208.1,8.64]
[1760384212930,6.1922818,208.13,208.1,8.64]
[1760384213120,6.1922818,208.12,208.11,8.64]
[1760384213310,17.06875701,208.12,208.11,8.64]
[1760384213508,17.78875701,208.12,208.11,8.64]
[1760384214219,17.78875701,208.12,208.04,12.01677852]
[1760384214220,20.8,208.09,208.04,12.01677852]
[1760384214420,26.9922818,208.09,208.05,8.64]
[1760384214826,26.9922818,208.09,208.05,13.44653689]
[1760384215932,20.8,208.09,208.05,26.13287911]
[1760384217011,26.9922818,208.09,208.05,26.13287911]
[1760384217210,37.86875701,208.12,208.06,6.8622818]
[1760384217403,20.8,208.12,208.07,8.64]
[1760384217608,20.8,208.12,208.07,15.5022818]
[1760384217827,20.8,208.12,208.07,9.31]
[1760384218211,0.72,208.11,208.05,16.82287911]
[1760384218414,0.72,208.11,208.06,8.64]
[1760384218736,6.1922818,208.09,208.05,4.80653689]
[1760384219027,6.9122818,208.09,208.06,8.64]
[1760384219228,0.72,208.09,208.06,8.64]
[1760384219527,27.7122818,208.09,208.06,13.44621428]
[1760384220027,27.7122818,208.09,207.98,24.04066384]
[1760384220028,31.67647521,208.05,207.93,4.80931082]
[1760384220208,6.1922818,207.94,207.87,12.69627454]
[1760384220409,6.1922818,207.94,207.93,8.64]
[1760384220628,6.1922818,207.95,207.93,8.64]
[1760384221211,31.67647521,207.97,207.94,8.64]
[1760384221528,37.86875701,207.97,207.94,13.44887276]
[1760384221837,37.86875701,207.97,207.95,8.64]
[1760384222228,31.67647521,207.97,207.95,8.64]
[1760384222425,31.67647521,207.97,207.96,8.64]
[1760384222624,38.58875701,207.97,207.96,8.64]
[1760384222940,38.58875701,207.97,207.93,4.80931082]
[1760384223122,0.72,207.96,207.93,4.80931082]
[1760384223320,0.72,207.96,207.94,8.64]
[1760384223522,37.86875701,207.97,207.94,8.64]
[1760384223840,19.99999999,208.09,207.95,0.67]
[1760384224142,10.87647521,208.07,207.96,8.64]
[1760384224319,31.67647521,208.03,207.98,6.1922818]
[1760384224513,10.87647521,208.04,207.99,15.5022818]
[1760384224721,6.1922818,208.09,208.03,6.1922818]
[1760384224929,6.1922818,208.11,208.06,4.80630587]
[1760384225119,6.1922818,208.11,208.07,8.64]
[1760384225336,131.3,208.1,208.07,14.8322818]
[1760384225534,131.3,208.1,208.09,6.1922818]
[1760384225742,131.3,208.1,208.09,15.5022818]
[1760384225925,20.8,208.13,208.09,15.5022818]
[1760384226129,20.8,208.13,208.1,6.8622818]
[1760384226328,20.8,208.13,208.11,8.64]
[1760384226927,20.8,208.13,208.11,13.44514394]
[1760384227440,131.3,208.16,208.12,4.51416389]
[1760384227652,131.3,208.16,208.13,8.64]
[1760384228752,4.56416389,208.15,208.13,4.80448883]
[1760384229042,135.14416389,208.16,208.03,4.80699899]
[1760384229216,135.14416389,208.16,207.99,0.67]
[1760384229217,31.67647521,208.13,207.99,0.67]
[1760384229416,3.84416389,208.05,207.99,4.51416389]
[1760384229620,3.84416389,208.06,208.0,13.15416389]
[1760384229834,3.84416389,208.06,208.01,8.64]
[1760384230121,3.84416389,208.08,208.02,3.84416389]
[1760384230431,24.64416389,208.09,208.03,0.67]
[1760384230627,3.84416389,208.08,208.04,8.64]
[1760384230832,3.84416389,208.08,208.05,13.44653689]
[1760384231540,131.3,208.12,208.06,4.51416389]
[1760384231745,131.3,208.12,208.06,3.84416389]
[1760384231927,0.72,208.11,208.05,16.82287911]
[1760384232124,3.84416389,208.09,208.06,8.64]
[1760384232325,3.84416389,208.1,208.06,9.32]
[1760384232525,3.84416389,208.11,208.06,9.32]
[1760384232745,3.84416389,208.1,208.07,4.80607487]
[1760384233534,3.84416389,208.11,208.07,4.80607487]
[1760384233961,131.3,208.12,208.07,16.82126206]
[1760384234154,131.3,208.12,208.08,0.68]
[1760384234330,131.3,208.12,208.09,8.64]
[1760384234526,3.84416389,208.13,208.09,8.64]
[1760384234729,3.84416389,208.14,208.1,4.80538202]
[1760384234927,4.54416389,208.14,208.1,4.80538202]
[1760384235241,0.7,208.13,208.1,4.80538202]
[1760384235444,4.54416389,208.13,208.1,4.80538202]
[1760384236138,20.8,208.15,208.07,4.80607487]
[1760384236139,3.84416389,208.11,208.07,4.80607487]
[1760384236442,3.84416389,208.1,208.08,8.64]
[1760384236629,135.14416389,208.09,208.07,4.80607487]
[1760384236834,4.54416389,208.08,208.04,4.80676792]
[1760384237044,3.84416389,208.07,208.05,8.64]
[1760384237452,131.3,208.09,208.05,8.64]
[1760384237627,3.84416389,208.08,208.05,8.64]
[1760384238132,132.0,208.09,208.05,8.64]
[1760384238336,3.84416389,208.08,208.05,8.64]
[1760384238539,131.3,208.09,208.06,0.68]
[1760384238744,131.3,208.09,208.08,4.8058439]
[1760384239249,131.3,208.09,208.07,4.80605568]
[1760384239451,131.3,208.09,208.08,8.64]
[1760384239631,131.3,208.09,208.08,9.32]
[1760384239957,131.3,208.09,208.08,8.64]
[1760384240131,3.84416389,208.16,208.08,13.16416389]
[1760384240338,3.84416389,208.14,208.08,4.52416389]
[1760384240554,24.64416389,208.14,208.09,8.64]
[1760384240734,0.7,208.18,208.1,9.32954591]
[1760384241049,1e-08,208.19,208.11,9.32]
[1760384241255,1e-08,208.19,208.18,3.84416389]
[1760384241439,1e-08,208.19,208.18,12.50416389]
[1760384241627,20.80000001,208.19,208.18,8.66]
[1760384241829,20.80000001,208.19,208.17,3.84416389]
[1760384242149,20.80000001,208.19,208.18,12.50416389]
[1760384242338,20.80000001,208.19,208.18,8.66]
[1760384242645,1e-08,208.19,208.18,8.64]
[1760384243356,1e-08,208.19,208.18,0.68]
[1760384243573,1e-08,208.19,208.18,9.32]
[1760384243929,1e-08,208.19,208.18,8.64]
[1760384244137,1e-08,208.19,208.14,4.80445853]
[1760384244138,4.5441639,208.19,208.14,4.80445853]
[1760384244332,4.5441639,208.19,208.15,8.66]
[1760384244333,4.54416389,208.18,208.15,8.66]
[1760384244535,3.8441639,208.19,208.14,4.80445853]
[1760384244737,3.8441639,208.19,208.13,12.01126572]
[1760384244738,20.80000001,208.19,208.16,4.80399692]
[1760384244936,20.80000001,208.19,208.17,8.66]
[1760384245242,4.54416389,208.18,208.13,12.01126572]
[1760384245433,4.54416389,208.18,208.14,4.80445853]
[1760384245632,4.54416389,208.18,208.15,8.66]
[1760384245833,24.6441639,208.19,208.15,8.66]
[1760384246441,25.3441639,208.19,208.15,8.66]
[1760384247355,32.5369639,208.19,208.16,4.80399692]
[1760384247538,31.8369639,208.19,208.17,8.64]
[1760384247732,4.54416389,208.18,208.17,8.64]
[1760384248040,4.54416389,208.18,208.16,4.80399692]
[1760384248041,4.54416389,208.18,208.14,4.80445853]
[1760384248241,3.84416389,208.17,208.15,8.64]
[1760384248446,3.84416389,208.17,208.04,10.87647521]
[1760384248631,27.99280001,208.19,207.92,0.2]
[1760384248632,3.84416389,208.13,208.08,0.68]
[1760384248829,3.84416389,208.11,208.09,8.64]
[1760384249032,4.54416389,208.13,208.07,16.82126206]
[1760384249253,4.54416389,208.13,208.08,8.64]
[1760384249431,3.84416389,208.13,208.09,20.65403238]
[1760384250656,3.84416389,208.13,208.1,8.64]
[1760384251238,3.84416389,208.13,208.11,8.64]
[1760384251539,3.84416389,208.13,208.12,8.64]
[1760384251732,10.87647521,208.15,208.09,16.81964533]
[1760384251936,3.84416389,208.13,208.1,8.64]
[1760384252338,3.84416389,208.13,208.11,4.80515112]
[1760384252563,3.84416389,208.13,208.12,8.64]
[1760384253765,0.7,208.14,208.12,8.64]
[1760384253964,10.87647521,208.15,208.13,8.64]
[1760384254164,20.8,208.16,208.11,16.81802892]
[1760384254459,20.8,208.16,208.13,4.80468937]
[1760384254662,20.8,208.16,208.14,9.32]
[1760384255653,20.8,208.16,208.15,4.80422772]
[1760384256368,20.8,208.16,208.15,13.44422772]
[1760384258765,7.19280001,208.19,208.15,13.44422772]
[1760384259063,20.8,208.16,208.15,13.44422772]
[1760384260157,3.84416389,208.17,208.15,13.44422772]
[1760384260463,3.84416389,208.17,208.15,5.48422772]
[1760384260766,3.84416389,208.16,208.15,4.80422772]
[1760384261068,3.84416389,208.16,208.15,13.44422772]
[1760384261364,31.67647521,208.15,208.08,4.8058439]
[1760384261570,3.84416389,208.11,208.09,8.64]
[1760384261752,3.84416389,208.11,208.08,4.8058439]
[1760384261753,3.84416389,208.1,208.08,4.8058439]
[1760384261957,3.84416389,208.09,208.08,4.8058439]
[1760384262269,3.84416389,208.09,208.08,8.64]
[1760384262465,20.24625205,208.09,208.08,8.64]
[1760384262670,20.8,208.05,207.99,4.80771627]
[1760384262852,3.84416389,208.0,207.95,16.83050502]
[1760384263052,3.84416389,207.99,207.96,8.64]
[1760384263252,3.84416389,207.99,207.95,17.51050502]
[1760384263253,3.84416389,208.01,207.97,8.64]
[1760384263561,24.64416389,208.04,207.98,13.16416389]
[1760384263870,0.72,208.1,208.01,3.84416389]
[1760384264069,20.8,208.06,208.03,4.80699899]
[1760384264372,20.8,208.06,208.04,8.64]
[1760384264557,4.56416389,208.05,208.02,4.80722797]
[1760384264758,4.56416389,208.05,208.03,8.64]
[1760384265149,24.64416389,208.06,208.03,8.64]
[1760384265343,24.64416389,208.06,208.04,8.64]
[1760384265554,20.8,208.06,208.02,4.80722797]
[1760384265754,20.8,208.06,208.03,8.64]
[1760384265965,24.64416389,208.06,208.03,8.64]
[1760384266158,3.84416389,208.05,208.02,4.80722797]
[1760384266361,3.84416389,208.05,208.03,8.64]
[1760384266569,3.84416389,208.05,208.04,8.64]
[1760384266868,10.87647521,208.04,207.97,12.0205048]
[1760384267080,3.84416389,207.99,207.95,4.80884828]
[1760384267254,3.84416389,208.01,207.96,9.32]
[1760384267449,3.84416389,208.03,207.97,13.16416389]
[1760384267657,20.8,208.04,207.98,0.68]
[1760384267872,3.84416389,208.03,207.99,8.64]
[1760384268055,3.84416389,208.02,208.0,8.64]
[1760384268370,3.84416389,208.02,208.01,4.80746117]
[1760384268576,20.8,208.04,208.01,4.80746117]
[1760384268767,0.72,208.14,208.03,3.84416389]
[1760384268952,10.87647521,208.1,208.04,13.16416389]
[1760384269152,3.84416389,208.11,208.05,12.48416389]
[1760384269473,3.84416389,208.07,208.02,0.68]
[1760384269662,3.84416389,208.08,208.03,9.32]
[1760384269857,3.84416389,208.08,208.04,9.32]
[1760384270050,3.84416389,208.07,208.05,8.64]
[1760384270256,3.84416389,208.07,208.06,8.64]
[1760384270461,24.64416389,208.07,208.06,8.64]
[1760384270869,25.32416389,208.07,208.0,12.0190635]
[1760384271066,3.84416389,208.04,208.01,13.44746117]
[1760384271264,3.84416389,208.04,208.01,4.80746117]
[1760384271576,3.84416389,208.04,208.02,8.64]
[1760384272091,3.84416389,208.03,208.02,8.64]
[1760384272259,3.84416389,208.04,208.02,8.64]
[1760384272666,3.84416389,208.04,208.03,8.64]
[1760384273065,10.87647521,208.03,207.94,0.86]
[1760384273370,3.84416389,207.97,207.95,4.80884828]
[1760384273569,4.52416389,207.97,207.95,4.80884828]
[1760384273771,3.84416389,207.97,207.96,8.64]
[1760384274588,3.84416389,207.98,207.96,8.64]
[1760384274775,14.7206391,207.98,207.97,8.64]
[1760384275089,15.4006391,207.98,207.97,8.64]
[1760384276373,14.7206391,207.98,207.97,8.64]
[1760384276571,10.87647521,207.97,207.94,5.00907053]
[1760384276766,3.84416389,207.96,207.95,8.64]
[1760384277156,4.52416389,207.96,207.95,8.64]
[1760384277680,3.84416389,207.96,207.95,8.64]
[1760384277886,4.52416389,207.96,207.94,0.2]
[1760384278057,35.5206391,207.95,207.94,0.2]
[1760384278261,35.5206391,207.95,207.94,8.84]
[1760384279062,166.8206391,207.95,207.94,8.84]
[1760384279789,162.97647521,207.95,207.94,8.84]
[1760384279987,166.8206391,207.95,207.94,8.84]
[1760384280864,155.94416389,207.95,207.94,13.64907954]
[1760384281392,36.2006391,207.95,207.94,0.2]
[1760384281563,36.2006391,207.95,207.94,8.84]
[1760384281770,36.2006391,207.95,207.94,0.2]
[1760384282280,31.67647521,207.95,207.94,8.84]
[1760384282471,35.5206391,207.95,207.94,8.84]
[1760384282682,36.2006391,207.95,207.94,8.84]
[1760384282878,32.35647521,207.95,207.94,8.84]
[1760384283072,36.2006391,207.95,207.94,8.84]
[1760384283387,10.87647521,208.01,207.94,0.86]
[1760384283591,0.68,208.02,207.95,9.3]
[1760384283592,3.84416389,208.0,207.95,9.3]
[1760384283794,31.67647521,208.01,207.95,9.3]
[1760384283966,3.84416389,207.98,207.95,8.64]
[1760384284364,3.84416389,207.96,207.94,0.2]
[1760384284664,3.84416389,207.95,207.94,0.2]
[1760384284893,20.20948738,207.95,207.94,0.2]
[1760384286104,10.87647521,207.95,207.94,0.2]
[1760384286394,15.4006391,207.95,207.94,0.2]
[1760384286567,20.20948738,207.95,207.94,0.2]
[1760384287367,22.5588826,207.95,207.94,0.2]
[1760384288409,22.5588826,207.95,207.92,0.2]
[1760384288410,17.07003432,207.93,207.92,0.2]
[1760384288619,17.07003432,207.93,207.82,5.01185402]
[1760384288620,31.67647521,207.92,207.82,5.01185402]
[1760384288782,6.19355911,207.85,207.82,5.01185402]
[1760384288983,17.07003432,207.84,207.82,0.2]
[1760384289308,20.8,207.86,207.82,0.2]
[1760384289309,17.07003432,207.83,207.82,0.2]
[1760384289494,17.75003432,207.83,207.82,0.2]
[1760384289882,131.3,207.83,207.82,0.2]
[1760384290293,148.37003432,207.83,207.82,0.2]
[1760384291298,142.17647521,207.83,207.82,0.2]
[1760384291600,131.3,207.83,207.82,0.86]
[1760384291789,131.3,207.83,207.82,5.67185641]
[1760384292101,131.3,207.83,207.82,5.68185641]
[1760384293113,131.3,207.83,207.82,14.34185641]
[1760384293798,131.3,207.83,207.82,20.53541552]
[1760384293985,131.3,207.83,207.82,14.34185641]
[1760384294387,148.37003432,207.83,207.82,8.86]
[1760384294627,137.49355911,207.83,207.82,13.67185641]
[1760384294788,131.3,207.83,207.82,14.34185641]
[1760384295707,20.8,207.87,207.82,14.34185641]
[1760384295930,137.49355911,207.96,207.86,6.19355911]
[1760384296235,6.19355911,207.93,207.87,8.66]
[1760384296421,6.19355911,207.91,207.88,8.66]
[1760384296607,6.19355911,207.9,207.89,8.66]
[1760384296809,6.19355911,207.93,207.89,9.33]
[1760384297147,6.19355911,207.9,207.84,0.67]
[1760384297430,6.19355911,207.9,207.86,6.86355911]
[1760384297431,20.8,207.9,207.86,6.86355911]
[1760384297605,20.8,207.9,207.87,6.86355911]
[1760384297805,20.8,207.93,207.88,9.33]
[1760384298024,26.99355911,207.93,207.89,0.67]
[1760384298435,20.8,207.93,207.9,8.66]
[1760384298612,20.8,207.93,207.91,0.67]
[1760384299017,20.8,207.93,207.9,8.66]
[1760384299213,20.8,207.92,207.91,4.80977345]
[1760384299429,10.87647521,207.99,207.92,0.67]
[1760384299629,17.07003432,207.99,207.93,8.66]
[1760384299808,17.07003432,208.02,207.95,6.19355911]
[1760384300016,6.19355911,208.01,207.96,9.33]
[1760384300204,10.87647521,208.0,207.96,8.66]
[1760384300410,17.07003432,208.0,207.96,8.66]
[1760384300724,6.19355911,207.99,207.96,8.66]
[1760384301527,6.19355911,207.98,207.96,4.80852916]
[1760384301723,6.19355911,207.98,207.97,8.66]
[1760384302124,38.54003432,207.98,207.97,8.66]
[1760384302344,20.8,207.94,207.87,0.67]
[1760384302514,6.19355911,207.92,207.88,8.66]
[1760384302716,6.19355911,207.91,207.87,4.81067629]
[1760384303026,31.67647521,207.94,207.87,4.81067629]
[1760384303229,6.19355911,207.89,207.88,8.66]
[1760384303833,6.19355911,207.91,207.88,13.47033735]
[1760384304045,20.8,207.9,207.89,0.67]
[1760384304239,27.66355911,207.9,207.88,8.66]
[1760384304546,6.19355911,207.89,207.88,8.66]
[1760384304847,6.86355911,207.89,207.88,8.66]
[1760384305024,6.19355911,207.89,207.88,8.66]
[1760384305816,20.8,207.89,207.88,8.66]
[1760384307038,20.8,207.89,207.88,9.33]
[1760384307342,6.19355911,207.92,207.85,0.67]
[1760384307541,20.8,207.89,207.86,13.47087533]
[1760384307724,20.8,207.89,207.87,0.67]
[1760384308136,0.67,207.94,207.87,0.67]
[1760384308339,6.19355911,207.92,207.87,0.67]
[1760384309217,6.19355911,207.9,207.86,13.47087533]
[1760384309442,6.19355911,207.89,207.86,8.66]
[1760384309740,20.8,207.87,207.86,8.66]
[1760384311140,6.86355911,207.89,207.86,8.66]
[1760384311343,20.8,207.87,207.86,8.66]
[1760384313130,11.54647521,207.9,207.86,8.66]
[1760384313449,10.87647521,207.89,207.86,8.66]
[1760384313745,10.87647521,207.89,207.86,13.47074767]
[1760384314532,37.87003432,207.87,207.86,8.66]
[1760384314726,38.54003432,207.87,207.86,8.66]
[1760384315132,32.34647521,207.87,207.86,8.66]
[1760384315646,31.67647521,207.87,207.86,8.66]
[1760384316745,38.54003432,207.87,207.86,8.66]
[1760384317445,21.47,207.9,207.86,8.66]
[1760384317645,20.8,207.87,207.86,8.66]
[1760384318158,38.54003432,207.87,207.86,8.66]
[1760384318533,32.34647521,207.87,207.86,8.66]
[1760384318930,38.54003432,207.87,207.86,8.66]
[1760384319755,32.34647521,207.87,207.86,8.66]
[1760384320053,10.87647521,207.86,207.84,8.66]
[1760384320430,31.67647521,207.87,207.84,8.66]
[1760384320759,31.67647521,207.85,207.84,8.66]
[1760384321254,32.34647521,207.85,207.84,8.66]
[1760384321636,31.67647521,207.85,207.84,8.66]
[1760384322338,31.67647521,207.85,207.82,0.2]
[1760384322659,31.67647521,207.85,207.83,8.66]
[1760384322954,10.87647521,207.9,207.84,9.34]
[1760384323155,0.7,207.95,207.86,6.19355911]
[1760384323331,0.7,207.95,207.88,6.19355911]
[1760384323535,20.8,207.93,207.89,14.85355911]
[1760384323733,20.8,207.92,207.89,15.53355911]
[1760384324055,10.87647521,207.96,207.9,0.68]
[1760384324251,10.87647521,207.94,207.9,0.68]
[1760384324457,20.8,207.92,207.9,0.68]
[1760384324674,6.19355911,207.91,207.84,0.68]
[1760384324829,10.87647521,207.9,207.85,13.47113976]
[1760384325036,10.87647521,207.91,207.86,0.68]
[1760384325347,10.87647521,207.91,207.87,0.68]
[1760384325548,10.87647521,207.91,207.88,8.66]
[1760384325744,20.8,207.94,207.89,0.68]
[1760384325951,20.8,207.93,207.88,14.85355911]
[1760384326159,20.8,207.92,207.88,6.19355911]
[1760384326367,6.89355911,207.95,207.89,9.34]
[1760384326566,6.89355911,207.95,207.9,4.81000481]
[1760384326567,10.87647521,207.94,207.9,4.81000481]
[1760384326862,10.87647521,207.95,207.9,4.81000481]
[1760384327067,0.7,207.94,207.9,4.81000481]
[1760384327362,6.89355911,207.93,207.9,4.81000481]
[1760384327656,6.89355911,207.93,207.91,8.66]
[1760384327863,17.77003432,207.93,207.92,8.66]
[1760384328039,6.89355911,207.93,207.92,8.66]
[1760384328439,31.67647521,207.93,207.92,8.66]
[1760384328869,20.8,207.93,207.92,14.14954213]
[1760384329038,6.89355911,208.0,207.92,32.36695656]
[1760384329242,6.19355911,208.02,207.96,6.19355911]
[1760384329461,6.19355911,208.04,207.98,6.19355911]
[1760384329767,10.87647521,208.03,207.99,9.34]
[1760384329973,20.8,208.01,208.0,0.68]
[1760384330351,6.19355911,208.07,208.0,6.87355911]
[1760384330556,6.19355911,208.07,208.01,6.19355911]
[1760384330765,6.19355911,208.09,208.03,6.19355911]
[1760384331063,10.87647521,208.09,208.04,8.64]
[1760384331252,20.8,208.06,208.04,0.67]
[1760384331454,20.8,208.06,208.05,8.64]
[1760384331863,20.8,208.06,208.04,0.67]
[1760384332179,20.8,208.06,208.05,8.64]
[1760384333546,20.8,208.06,208.01,0.67]
[1760384333773,6.19355911,208.05,208.02,8.64]
[1760384334390,6.19355911,208.05,208.02,9.31]
[1760384334690,6.19355911,208.1,208.03,0.67]
[1760384334871,26.99355911,208.1,208.04,4.80676792]
[1760384335074,2.61142487,208.16,208.04,4.80676792]
[1760384335075,3.28142487,208.16,208.05,9.31]
[1760384335260,6.19355911,208.14,208.06,6.86355911]
[1760384335461,20.8,208.11,208.07,0.67]
[1760384335783,20.8,208.11,208.08,9.31]
[1760384336761,6.86355911,208.11,208.08,8.64]
[1760384336962,26.99355911,208.12,208.08,13.44578876]
[1760384337168,26.99355911,208.12,208.08,14.11578876]
[1760384337656,26.99355911,208.12,208.08,13.44578876]
[1760384338385,26.99355911,208.12,208.09,8.64]
[1760384338875,26.99355911,208.12,208.09,13.44555628]
[1760384339756,26.99355911,208.12,208.09,4.80555628]
[1760384340073,26.99355911,208.12,208.1,8.64]
[1760384340272,26.99355911,208.12,208.09,4.80555628]
[1760384340477,26.99355911,208.12,208.1,8.64]
[1760384340653,27.66355911,208.12,208.1,8.64]
[1760384340983,26.99355911,208.12,208.11,8.64]
[1760384341763,26.99355911,208.12,208.08,4.80562036]
[1760384341994,26.99355911,208.12,208.09,8.64]
[1760384342163,26.99355911,208.12,208.1,8.64]
[1760384342364,26.99355911,208.12,208.07,4.80607487]
[1760384342591,26.99355911,208.12,208.08,8.64]
[1760384343164,26.99355911,208.12,208.09,4.80561295]
[1760384343364,26.99355911,208.12,208.1,8.64]
[1760384343666,26.99355911,208.12,208.11,8.64]
[1760384345086,27.66355911,208.12,208.09,4.80561295]
[1760384345272,26.99355911,208.12,208.1,8.64]
[1760384345584,26.99355911,208.12,208.11,8.64]
[1760384346190,20.8,208.08,208.04,4.80676792]
[1760384346371,6.19355911,208.06,208.01,0.67]
[1760384346574,6.19355911,208.04,208.02,8.64]
[1760384346776,6.86355911,208.04,207.99,16.82728655]
[1760384346990,6.86355911,208.04,208.0,8.64]
[1760384347290,137.49355911,208.06,208.01,9.31]
[1760384347487,137.49355911,208.06,208.01,8.64]
[1760384347670,137.49355911,208.06,208.01,9.31]
[1760384348078,20.8,208.08,208.03,6.19355911]
[1760384348280,20.8,208.08,208.04,9.31]
[1760384348569,20.8,208.08,208.06,4.80630587]
[1760384348791,6.19355911,208.11,208.07,8.64]
[1760384348998,10.87647521,208.13,208.08,0.67]
[1760384349291,0.67,208.13,208.08,0.67]
[1760384349474,10.87647521,208.14,208.09,8.64]
[1760384349675,0.1,208.16,208.1,13.15492986]
[1760384349881,0.1,208.16,208.15,3.84492986]
[1760384350084,0.1,208.16,208.15,12.48492986]
[1760384350391,0.1,208.16,208.15,13.15492986]
[1760384350772,0.1,208.16,208.15,17.95915758]
[1760384355295,0.1,208.16,208.15,14.11422772]
[1760384355488,0.1,208.16,208.15,17.95915758]
[1760384356780,0.1,208.16,208.15,9.31915758]
[1760384357305,0.1,208.16,208.15,17.95915758]
[1760384357999,0.1,208.16,208.15,9.31915758]
[1760384358307,0.79,208.16,208.1,16.818468]
[1760384358508,4.63492986,208.16,208.11,8.64]
[1760384358709,0.1,208.16,208.12,8.64]
[1760384358876,0.79,208.16,208.12,8.64]
[1760384359302,0.69,208.15,208.1,16.81883708]
[1760384359509,0.69,208.14,208.11,8.64]
[1760384359743,3.84492986,208.12,208.08,4.8058439]
[1760384359872,10.87647521,208.14,208.04,12.01665173]
[1760384359873,3.84492986,208.1,208.05,4.80653689]
[1760384360076,21.49,208.11,208.06,8.64]
[1760384360077,3.84492986,208.07,208.06,8.64]
[1760384360378,4.53492986,208.07,208.04,4.80675521]
[1760384360578,0.69,208.06,208.05,8.64]
[1760384360877,21.49,208.06,208.05,8.64]
[1760384361282,21.49,208.06,208.01,16.82565838]
[1760384361477,24.64492986,208.06,208.02,8.64]
[1760384361678,24.64492986,208.06,207.93,20.8]
[1760384361679,11.56647521,208.05,207.95,4.80884828]